[Event "*** Titled Tuesday Blitz"]
[Site "Chess.com"]
[Date "2020.11.03"]
[Round "11"]
[White "ShahMatKanal"]
[Black "Flopezin"]
[Result "0-1"]
[WhiteElo "2478"]
[BlackElo "2397"]
[TimeControl "180+1"]
[EndTime "12:10:28 PST"]
[Termination "Flopezin won by checkmate"]

1. Nf3 {[%clk 0:03:00.9]} 1... d5 {[%clk 0:02:59.3]} 2. c4 {[%clk 0:03:00.5]}
2... c6 {[%clk 0:02:57.4]} 3. Qc2 {[%clk 0:02:57.2]} 3... Nf6 {[%clk 0:02:54.9]}
4. g3 {[%clk 0:02:57.1]} 4... dxc4 {[%clk 0:02:49.9]} 5. Qxc4 {[%clk 0:02:56.2]}
5... b5 {[%clk 0:02:50.6]} 6. Qc2 {[%clk 0:02:55.8]} 6... Bb7 {[%clk 0:02:48.9]}
7. Bg2 {[%clk 0:02:55.7]} 7... Nbd7 {[%clk 0:02:49.6]} 8. d4 {[%clk 0:02:45.9]}
8... e6 {[%clk 0:02:49.5]} 9. O-O {[%clk 0:02:45.4]} 9... c5 {[%clk 0:02:48.3]}
10. dxc5 {[%clk 0:02:38]} 10... Bxc5 {[%clk 0:02:46.3]} 11. Nc3 {[%clk
0:02:37.9]} 11... a6 {[%clk 0:02:45.9]} 12. Bf4 {[%clk 0:02:27.9]} 12... O-O
{[%clk 0:02:42.9]} 13. Rfd1 {[%clk 0:02:27]} 13... Qb6 {[%clk 0:02:42.4]} 14.
Rac1 {[%clk 0:02:24.6]} 14... Bxf2+ {[%clk 0:02:41.5]} 15. Kh1 {[%clk
0:02:23.7]} 15... Nc5 {[%clk 0:02:32.3]} 16. Ng5 {[%clk 0:02:03.4]} 16... h6
{[%clk 0:02:05.6]} 17. Rd6 {[%clk 0:01:56.7]} 17... Qa7 {[%clk 0:01:58.7]} 18.
Nh3 {[%clk 0:01:32.9]} 18... b4 {[%clk 0:01:46.9]} 19. Nxf2 {[%clk 0:01:27.6]}
19... bxc3 {[%clk 0:01:45.2]} 20. Qxc3 {[%clk 0:01:00.5]} 20... Rac8 {[%clk
0:01:39.7]} 21. Qe3 {[%clk 0:00:52.2]} 21... Bxg2+ {[%clk 0:01:37.3]} 22. Kxg2
{[%clk 0:00:53.1]} 22... Qb7+ {[%clk 0:01:35.3]} 23. Kg1 {[%clk 0:00:48.3]}
23... Nd5 {[%clk 0:01:18.7]} 24. Qd4 {[%clk 0:00:40.2]} 24... Nxf4 {[%clk
0:01:15.8]} 25. gxf4 {[%clk 0:00:39.8]} 25... Nb3 {[%clk 0:01:12.5]} 26. Rxc8
{[%clk 0:00:22.3]} 26... Nxd4 {[%clk 0:01:10.6]} 27. Rxf8+ {[%clk 0:00:23.2]}
27... Kxf8 {[%clk 0:01:10.5]} 28. Rxd4 {[%clk 0:00:23.3]} 28... Qxb2 {[%clk
0:01:10.2]} 29. Ra4 {[%clk 0:00:19]} 29... Qc1+ {[%clk 0:01:08.8]} 30. Kg2
{[%clk 0:00:12.1]} 30... Qc6+ {[%clk 0:01:06.9]} 31. Re4 {[%clk 0:00:12.3]}
31... f5 {[%clk 0:01:06.3]} 32. Kf3 {[%clk 0:00:12.4]} 32... Kf7 {[%clk
0:01:04.6]} 33. Ke3 {[%clk 0:00:11.5]} 33... fxe4 {[%clk 0:01:04.6]} 34. Nxe4
{[%clk 0:00:12.4]} 34... Qb6+ {[%clk 0:01:04.4]} 35. Kf3 {[%clk 0:00:11.8]}
35... Qb2 {[%clk 0:01:03.3]} 36. a4 {[%clk 0:00:07.7]} 36... Qb3+ {[%clk
0:01:01.4]} 37. e3 {[%clk 0:00:08.3]} 37... Qxa4 {[%clk 0:01:01.9]} 38. Nd6+
{[%clk 0:00:08.7]} 38... Kg8 {[%clk 0:01:00.4]} 39. Ne4 {[%clk 0:00:05.8]} 39...
Qc6 {[%clk 0:01:00.2]} 40. h4 {[%clk 0:00:05.4]} 40... h5 {[%clk 0:00:59.6]} 41.
Kf2 {[%clk 0:00:02.1]} 41... Qxe4 {[%clk 0:00:57.4]} 42. Ke2 {[%clk 0:00:02.6]}
42... a5 {[%clk 0:00:56.7]} 43. Kd2 {[%clk 0:00:03.1]} 43... a4 {[%clk
0:00:56.1]} 44. Kc3 {[%clk 0:00:02.6]} 44... a3 {[%clk 0:00:56.2]} 45. Kb3
{[%clk 0:00:03]} 45... Qxe3+ {[%clk 0:00:56.7]} 46. Ka2 {[%clk 0:00:02.6]} 46...
Qxf4 {[%clk 0:00:57.6]} 47. Kxa3 {[%clk 0:00:02.8]} 47... Qxh4 {[%clk
0:00:58.5]} 48. Kb3 {[%clk 0:00:03.7]} 48... Qd4 {[%clk 0:00:58.2]} 49. Kc2
{[%clk 0:00:03.8]} 49... h4 {[%clk 0:00:58.4]} 50. Kb3 {[%clk 0:00:03.8]} 50...
h3 {[%clk 0:00:59.3]} 51. Kc2 {[%clk 0:00:04.7]} 51... h2 {[%clk 0:01:00.2]} 52.
Kb3 {[%clk 0:00:05.6]} 52... h1=Q {[%clk 0:00:59.8]} 53. Ka2 {[%clk 0:00:06.5]}
53... Qg2+ {[%clk 0:00:59.5]} 54. Kb3 {[%clk 0:00:07.4]} 54... Qf3+ {[%clk
0:00:59.6]} 55. Kc2 {[%clk 0:00:08.3]} 55... Qc4+ {[%clk 0:00:59.6]} 56. Kd2
{[%clk 0:00:08.4]} 56... Qa2+ {[%clk 0:00:59.4]} 57. Ke1 {[%clk 0:00:07.9]}
57... Qfe2# {[%clk 0:00:58.9]} 0-1

[Event "*** Titled Tuesday Blitz"]
[Site "Chess.com"]
[Date "2020.11.03"]
[Round "11"]
[White "jaskol95"]
[Black "Bacyanide"]
[Result "0-1"]
[WhiteElo "2325"]
[BlackElo "2412"]
[TimeControl "180+1"]
[EndTime "12:10:32 PST"]
[Termination "Bacyanide won by resignation"]

1. d4 {[%clk 0:03:00.9]} 1... Nf6 {[%clk 0:02:57.7]} 2. Bf4 {[%clk 0:03:01.4]}
2... g6 {[%clk 0:02:54.7]} 3. Nc3 {[%clk 0:03:02]} 3... d5 {[%clk 0:02:51.8]} 4.
e3 {[%clk 0:03:02.4]} 4... Bg7 {[%clk 0:02:51.2]} 5. h4 {[%clk 0:03:02.9]} 5...
h5 {[%clk 0:02:43.8]} 6. Nf3 {[%clk 0:03:01.7]} 6... c6 {[%clk 0:02:43.4]} 7.
Be2 {[%clk 0:03:01.3]} 7... Bf5 {[%clk 0:02:40.6]} 8. Ne5 {[%clk 0:02:55.7]}
8... Nbd7 {[%clk 0:02:40]} 9. Qd2 {[%clk 0:02:52.8]} 9... Nxe5 {[%clk
0:02:31.7]} 10. Bxe5 {[%clk 0:02:52.5]} 10... b5 {[%clk 0:02:30.6]} 11. a3
{[%clk 0:02:44.5]} 11... a5 {[%clk 0:02:30]} 12. O-O {[%clk 0:02:44.1]} 12...
O-O {[%clk 0:02:25]} 13. f3 {[%clk 0:02:34.9]} 13... Qd7 {[%clk 0:02:22.1]} 14.
Bd3 {[%clk 0:02:23.4]} 14... Rac8 {[%clk 0:01:55.3]} 15. e4 {[%clk 0:02:11.2]}
15... dxe4 {[%clk 0:01:54.6]} 16. fxe4 {[%clk 0:02:10.6]} 16... Bg4 {[%clk
0:01:53.7]} 17. Rae1 {[%clk 0:01:51.6]} 17... Nh7 {[%clk 0:01:50.5]} 18. Bxg7
{[%clk 0:01:49.6]} 18... Kxg7 {[%clk 0:01:51.4]} 19. d5 {[%clk 0:01:39.4]} 19...
b4 {[%clk 0:01:48.1]} 20. dxc6 {[%clk 0:01:30.7]} 20... Qd4+ {[%clk 0:01:46.3]}
21. Kh1 {[%clk 0:01:22.5]} 21... bxc3 {[%clk 0:01:45.4]} 22. bxc3 {[%clk
0:01:23.4]} 22... Qc5 {[%clk 0:01:40.9]} 23. Qf4 {[%clk 0:01:03.5]} 23... Rxc6
{[%clk 0:01:38.4]} 24. e5 {[%clk 0:01:01.4]} 24... Qxc3 {[%clk 0:01:31.4]} 25.
Re3 {[%clk 0:00:50.4]} 25... Qc5 {[%clk 0:01:28.9]} 26. Rg3 {[%clk 0:00:45.5]}
26... e6 {[%clk 0:01:23.4]} 27. Rxg4 {[%clk 0:00:38.8]} 27... hxg4 {[%clk
0:01:24.3]} 28. h5 {[%clk 0:00:38.8]} 28... Qe7 {[%clk 0:01:14.6]} 29. Qe4
{[%clk 0:00:27.6]} 29... Qh4+ {[%clk 0:01:08.4]} 30. Kg1 {[%clk 0:00:26.7]}
30... Rcc8 {[%clk 0:00:52.4]} 31. Rxf7+ {[%clk 0:00:20.5]} 31... Rxf7 {[%clk
0:00:42.1]} 32. Qxg6+ {[%clk 0:00:20.5]} 32... Kf8 {[%clk 0:00:41.9]} 33. Qxe6
{[%clk 0:00:17.2]} 33... Rd8 {[%clk 0:00:33.9]} 34. Qh6+ {[%clk 0:00:13.6]}
34... Rg7 {[%clk 0:00:29.8]} 35. Qf4+ {[%clk 0:00:09]} 35... Kg8 {[%clk
0:00:28.6]} 36. e6 {[%clk 0:00:09.5]} 36... Qe7 {[%clk 0:00:25.4]} 37. h6 {[%clk
0:00:08.7]} 37... Rg5 {[%clk 0:00:23.4]} 38. Bxh7+ {[%clk 0:00:08.6]} 38... Kxh7
{[%clk 0:00:22.7]} 39. Qe4+ {[%clk 0:00:09.1]} 39... Kxh6 {[%clk 0:00:22.2]} 40.
g3 {[%clk 0:00:08.7]} 40... Rd6 {[%clk 0:00:21.1]} 41. Qh1+ {[%clk 0:00:07.6]}
41... Kg7 {[%clk 0:00:20.5]} 42. Qa8 {[%clk 0:00:07.4]} 42... Rxe6 {[%clk
0:00:20.6]} 0-1

[Event "*** Titled Tuesday Blitz"]
[Site "Chess.com"]
[Date "2020.11.03"]
[Round "11"]
[White "MF1966Idrisov"]
[Black "andriipalchuk"]
[Result "1-0"]
[WhiteElo "2372"]
[BlackElo "2429"]
[TimeControl "180+1"]
[EndTime "12:10:39 PST"]
[Termination "MF1966Idrisov won on time"]

1. Nf3 {[%clk 0:03:00.9]} 1... Nf6 {[%clk 0:02:59.4]} 2. b3 {[%clk 0:03:00.5]}
2... d5 {[%clk 0:02:57.2]} 3. Bb2 {[%clk 0:03:00.2]} 3... c5 {[%clk 0:02:56.8]}
4. e3 {[%clk 0:02:59.9]} 4... Nc6 {[%clk 0:02:56.6]} 5. d4 {[%clk 0:03:00.1]}
5... g6 {[%clk 0:02:54.1]} 6. Bd3 {[%clk 0:02:57.7]} 6... Bg7 {[%clk 0:02:53.3]}
7. h3 {[%clk 0:02:57.9]} 7... O-O {[%clk 0:02:52.5]} 8. O-O {[%clk 0:02:57.7]}
8... Nd7 {[%clk 0:02:52.6]} 9. Nbd2 {[%clk 0:02:55.6]} 9... e5 {[%clk
0:02:51.3]} 10. dxe5 {[%clk 0:02:55.6]} 10... Ndxe5 {[%clk 0:02:50.5]} 11. Nxe5
{[%clk 0:02:55.2]} 11... Nxe5 {[%clk 0:02:51.4]} 12. Qc1 {[%clk 0:02:54.2]}
12... Qf6 {[%clk 0:02:41.9]} 13. Rb1 {[%clk 0:02:52.2]} 13... Re8 {[%clk
0:02:07.2]} 14. f4 {[%clk 0:02:47.5]} 14... Nxd3 {[%clk 0:02:06.5]} 15. cxd3
{[%clk 0:02:46.6]} 15... Qe7 {[%clk 0:01:39.4]} 16. e4 {[%clk 0:02:46.4]} 16...
dxe4 {[%clk 0:01:37.4]} 17. Nxe4 {[%clk 0:02:29.8]} 17... b6 {[%clk 0:01:00.2]}
18. Bxg7 {[%clk 0:02:27.5]} 18... Kxg7 {[%clk 0:01:01.1]} 19. Qc3+ {[%clk
0:02:26.3]} 19... f6 {[%clk 0:01:01.2]} 20. Rbe1 {[%clk 0:02:24.9]} 20... Bb7
{[%clk 0:00:59.9]} 21. f5 {[%clk 0:02:13.8]} 21... Qe5 {[%clk 0:00:47.4]} 22.
Qxe5 {[%clk 0:02:01.5]} 22... Rxe5 {[%clk 0:00:48.3]} 23. Nd6 {[%clk 0:01:55]}
23... Bd5 {[%clk 0:00:40.5]} 24. Rxe5 {[%clk 0:01:51.5]} 24... fxe5 {[%clk
0:00:41.4]} 25. f6+ {[%clk 0:01:51.8]} 25... Kf8 {[%clk 0:00:37]} 26. Re1 {[%clk
0:01:48.5]} 26... Rd8 {[%clk 0:00:36.3]} 27. Nb5 {[%clk 0:01:48.2]} 27... Kf7
{[%clk 0:00:26.8]} 28. Rxe5 {[%clk 0:01:33.5]} 28... Kxf6 {[%clk 0:00:26]} 29.
Re3 {[%clk 0:01:33.3]} 29... Rd7 {[%clk 0:00:24]} 30. Kf2 {[%clk 0:01:28.7]}
30... Bc6 {[%clk 0:00:20.5]} 31. Nc3 {[%clk 0:01:27.9]} 31... Rd4 {[%clk
0:00:20.5]} 32. g4 {[%clk 0:01:24.5]} 32... h6 {[%clk 0:00:12.9]} 33. Ne2 {[%clk
0:01:24.1]} 33... Rd6 {[%clk 0:00:12.2]} 34. Kg3 {[%clk 0:01:21.9]} 34... Bb5
{[%clk 0:00:11.7]} 35. Nc1 {[%clk 0:01:18.2]} 35... Ba6 {[%clk 0:00:09.6]} 36.
h4 {[%clk 0:01:17.1]} 36... g5 {[%clk 0:00:09.3]} 37. hxg5+ {[%clk 0:01:15.7]}
37... hxg5 {[%clk 0:00:10.2]} 38. Kf3 {[%clk 0:01:14]} 38... Bb7+ {[%clk
0:00:09.7]} 39. Ke2 {[%clk 0:01:13.4]} 39... Rd4 {[%clk 0:00:08.9]} 40. Rg3
{[%clk 0:01:12.8]} 40... Bc8 {[%clk 0:00:08.3]} 41. Kf3 {[%clk 0:01:11.1]} 41...
Rf4+ {[%clk 0:00:07.6]} 42. Ke3 {[%clk 0:01:09]} 42... Rxg4 {[%clk 0:00:07.9]}
43. Rf3+ {[%clk 0:01:08.6]} 43... Ke7 {[%clk 0:00:07.9]} 44. Ne2 {[%clk
0:01:08]} 44... Bb7 {[%clk 0:00:08.1]} 45. Rf5 {[%clk 0:01:07.5]} 45... Bc8
{[%clk 0:00:07]} 46. Re5+ {[%clk 0:01:06.4]} 46... Kd6 {[%clk 0:00:07]} 47. Re8
{[%clk 0:01:06.4]} 47... Kd7 {[%clk 0:00:07.5]} 48. Rg8 {[%clk 0:01:05.4]} 48...
Rg2 {[%clk 0:00:08.1]} 49. Nc3 {[%clk 0:01:04.6]} 49... Bb7 {[%clk 0:00:04.9]}
50. Rg7+ {[%clk 0:01:03.2]} 50... Kc8 {[%clk 0:00:04.9]} 51. Nb5 {[%clk
0:01:01.8]} 51... Ba6 {[%clk 0:00:02.2]} 52. Nxa7+ {[%clk 0:01:00.7]} 52... Kd8
{[%clk 0:00:02.9]} 53. Nc6+ {[%clk 0:01:00.6]} 53... Ke8 {[%clk 0:00:03.5]} 54.
Ne5 {[%clk 0:00:59.9]} 54... Rg3+ {[%clk 0:00:03.4]} 55. Ke4 {[%clk 0:00:59.5]}
55... Bb5 {[%clk 0:00:02.3]} 56. Kf5 {[%clk 0:00:58.2]} 56... Re3 {[%clk
0:00:02]} 57. Ke6 {[%clk 0:00:57.3]} 1-0

[Event "*** Titled Tuesday Blitz"]
[Site "Chess.com"]
[Date "2020.11.03"]
[Round "11"]
[White "Mr_Sinigami"]
[Black "Witik"]
[Result "1-0"]
[WhiteElo "2526"]
[BlackElo "2610"]
[TimeControl "180+1"]
[EndTime "12:10:40 PST"]
[Termination "Mr_Sinigami won by resignation"]

1. d4 {[%clk 0:03:00.9]} 1... d5 {[%clk 0:02:58.6]} 2. Nf3 {[%clk 0:03:01.8]}
2... e6 {[%clk 0:02:58.5]} 3. Bf4 {[%clk 0:03:02.2]} 3... Bd6 {[%clk 0:02:58.3]}
4. Bg3 {[%clk 0:03:01.9]} 4... f5 {[%clk 0:02:58.3]} 5. e3 {[%clk 0:03:00.6]}
5... Nf6 {[%clk 0:02:58.5]} 6. c4 {[%clk 0:02:58.4]} 6... O-O {[%clk 0:02:57.2]}
7. Nc3 {[%clk 0:02:58]} 7... c6 {[%clk 0:02:57.2]} 8. Be2 {[%clk 0:02:55.6]}
8... Ne4 {[%clk 0:02:56.7]} 9. Bxd6 {[%clk 0:02:47.5]} 9... Qxd6 {[%clk
0:02:56]} 10. g3 {[%clk 0:02:43.9]} 10... Nd7 {[%clk 0:02:54.9]} 11. O-O {[%clk
0:02:37.6]} 11... b6 {[%clk 0:02:54.1]} 12. Rc1 {[%clk 0:02:35]} 12... Bb7
{[%clk 0:02:54.1]} 13. Ne1 {[%clk 0:02:30.9]} 13... Rf6 {[%clk 0:02:46.4]} 14.
Ng2 {[%clk 0:02:11.2]} 14... Rh6 {[%clk 0:02:43.1]} 15. Nxe4 {[%clk 0:02:03.9]}
15... dxe4 {[%clk 0:02:40.5]} 16. f4 {[%clk 0:01:50.3]} 16... exf3 {[%clk
0:02:22.5]} 17. Bxf3 {[%clk 0:01:49.2]} 17... e5 {[%clk 0:02:14.1]} 18. c5
{[%clk 0:01:12.5]} 18... Qe6 {[%clk 0:02:05.5]} 19. d5 {[%clk 0:01:08.5]} 19...
Qf7 {[%clk 0:01:47]} 20. cxb6 {[%clk 0:01:00.7]} 20... cxd5 {[%clk 0:01:44.7]}
21. Rc7 {[%clk 0:00:57.9]} 21... e4 {[%clk 0:01:37.2]} 22. Rxb7 {[%clk
0:00:54.5]} 22... exf3 {[%clk 0:01:36.8]} 23. Rxf3 {[%clk 0:00:37.4]} 23... Rxb6
{[%clk 0:01:35.3]} 24. Rxb6 {[%clk 0:00:32.5]} 24... axb6 {[%clk 0:01:26.3]} 25.
a3 {[%clk 0:00:32.4]} 25... Ne5 {[%clk 0:01:24.6]} 26. Rf1 {[%clk 0:00:31.9]}
26... Nc4 {[%clk 0:01:20]} 27. Qd4 {[%clk 0:00:31]} 27... Re8 {[%clk 0:01:09.4]}
28. Rd1 {[%clk 0:00:28.7]} 28... g6 {[%clk 0:00:55.7]} 29. Kf2 {[%clk
0:00:24.5]} 29... Rd8 {[%clk 0:00:40.5]} 30. Nf4 {[%clk 0:00:21.7]} 30... Nd6
{[%clk 0:00:40.2]} 31. Nxd5 {[%clk 0:00:19.6]} 31... Ne4+ {[%clk 0:00:40]} 32.
Kg2 {[%clk 0:00:19.9]} 32... h6 {[%clk 0:00:31.6]} 33. Nf6+ {[%clk 0:00:19]}
33... Nxf6 {[%clk 0:00:29]} 34. Qxd8+ {[%clk 0:00:18.7]} 34... Kg7 {[%clk
0:00:29.9]} 35. Rd6 {[%clk 0:00:17.1]} 35... g5 {[%clk 0:00:19]} 36. Rxb6 {[%clk
0:00:14.7]} 36... Nd5 {[%clk 0:00:16.4]} 37. Rd6 {[%clk 0:00:13.5]} 37... Nxe3+
{[%clk 0:00:13.6]} 38. Kg1 {[%clk 0:00:13.6]} 38... Qb3 {[%clk 0:00:11.1]} 39.
Qe7+ {[%clk 0:00:12.4]} 39... Qf7 {[%clk 0:00:09]} 40. Qxe3 {[%clk 0:00:12.2]}
1-0

[Event "*** Titled Tuesday Blitz"]
[Site "Chess.com"]
[Date "2020.11.03"]
[Round "11"]
[White "MashaFromRussia"]
[Black "bazar-wokzal"]
[Result "1/2-1/2"]
[WhiteElo "2375"]
[BlackElo "2502"]
[TimeControl "180+1"]
[EndTime "12:10:46 PST"]
[Termination "Game drawn by repetition"]

1. d4 {[%clk 0:03:00.9]} 1... Nf6 {[%clk 0:02:59.5]} 2. c4 {[%clk 0:03:01]} 2...
Nc6 {[%clk 0:02:59.7]} 3. Nf3 {[%clk 0:03:00.9]} 3... e6 {[%clk 0:02:59.7]} 4.
g3 {[%clk 0:03:00]} 4... Bb4+ {[%clk 0:02:59.1]} 5. Bd2 {[%clk 0:02:59]} 5...
Qe7 {[%clk 0:02:59.3]} 6. Bg2 {[%clk 0:02:58.6]} 6... Bxd2+ {[%clk 0:02:58.9]}
7. Nbxd2 {[%clk 0:02:56.2]} 7... d6 {[%clk 0:02:58.7]} 8. O-O {[%clk 0:02:56]}
8... e5 {[%clk 0:02:58.9]} 9. d5 {[%clk 0:02:56.4]} 9... Nb8 {[%clk 0:02:58.5]}
10. e4 {[%clk 0:02:56.7]} 10... Nbd7 {[%clk 0:02:44]} 11. Qc2 {[%clk 0:02:56.4]}
11... a5 {[%clk 0:02:36.1]} 12. a3 {[%clk 0:02:41.3]} 12... a4 {[%clk
0:02:33.2]} 13. b4 {[%clk 0:02:41.6]} 13... axb3 {[%clk 0:02:33.3]} 14. Nxb3
{[%clk 0:02:42]} 14... b6 {[%clk 0:02:32]} 15. a4 {[%clk 0:02:41.8]} 15... Nc5
{[%clk 0:02:29]} 16. Nxc5 {[%clk 0:02:40.9]} 16... bxc5 {[%clk 0:02:28.9]} 17.
a5 {[%clk 0:02:36.3]} 17... O-O {[%clk 0:02:27.8]} 18. Rfb1 {[%clk 0:02:36.6]}
18... Ba6 {[%clk 0:02:21.6]} 19. Nd2 {[%clk 0:02:35]} 19... g6 {[%clk
0:02:09.7]} 20. Qa4 {[%clk 0:02:34.4]} 20... Qd7 {[%clk 0:02:03.5]} 21. Qxd7
{[%clk 0:01:54.3]} 21... Nxd7 {[%clk 0:02:03.2]} 22. Bh3 {[%clk 0:01:55.2]}
22... f5 {[%clk 0:02:03]} 23. g4 {[%clk 0:01:45.4]} 23... fxe4 {[%clk
0:01:55.6]} 24. g5 {[%clk 0:01:45.4]} 24... Rfd8 {[%clk 0:01:49.8]} 25. Nxe4
{[%clk 0:01:39.4]} 25... Nf8 {[%clk 0:01:40.5]} 26. Bf1 {[%clk 0:01:27]} 26...
Kg7 {[%clk 0:01:38.6]} 27. Rb3 {[%clk 0:01:20.3]} 27... h6 {[%clk 0:01:35.5]}
28. h4 {[%clk 0:01:19.8]} 28... Bc8 {[%clk 0:01:22]} 29. Be2 {[%clk 0:00:53.2]}
29... Ra7 {[%clk 0:01:19.8]} 30. Rb8 {[%clk 0:00:42.5]} 30... Nd7 {[%clk
0:01:01]} 31. Rb5 {[%clk 0:00:38.1]} 31... Ba6 {[%clk 0:00:59.2]} 32. Rb3 {[%clk
0:00:36.8]} 32... Rda8 {[%clk 0:00:55.8]} 33. Bg4 {[%clk 0:00:33.4]} 33... Bc8
{[%clk 0:00:52.9]} 34. Rab1 {[%clk 0:00:17.8]} 34... Rxa5 {[%clk 0:00:49]} 35.
Bxd7 {[%clk 0:00:18.3]} 35... Bxd7 {[%clk 0:00:48.9]} 36. Rb7 {[%clk 0:00:19.2]}
36... R5a7 {[%clk 0:00:48.9]} 37. Rxa7 {[%clk 0:00:13.5]} 37... Rxa7 {[%clk
0:00:48.9]} 38. Rb8 {[%clk 0:00:14.4]} 38... Bf5 {[%clk 0:00:48.9]} 39. Nf6
{[%clk 0:00:14.7]} 39... hxg5 {[%clk 0:00:48.6]} 40. hxg5 {[%clk 0:00:14.4]}
40... Bd3 {[%clk 0:00:46.8]} 41. Rg8+ {[%clk 0:00:11]} 41... Kf7 {[%clk
0:00:46.6]} 42. Rh8 {[%clk 0:00:10.6]} 42... Bxc4 {[%clk 0:00:37.6]} 43. Rh7+
{[%clk 0:00:10.8]} 43... Kf8 {[%clk 0:00:37.9]} 44. Kh2 {[%clk 0:00:10.1]} 44...
Ra2 {[%clk 0:00:31.9]} 45. Kg3 {[%clk 0:00:09.8]} 45... Rd2 {[%clk 0:00:31.7]}
46. Rh8+ {[%clk 0:00:07.1]} 46... Kg7 {[%clk 0:00:29.6]} 47. Rh7+ {[%clk
0:00:07.2]} 47... Kf8 {[%clk 0:00:30]} 48. Rh8+ {[%clk 0:00:07.2]} 48... Kg7
{[%clk 0:00:29.4]} 49. Rh7+ {[%clk 0:00:07.7]} 49... Kf8 {[%clk 0:00:29.3]}
1/2-1/2

[Event "*** Titled Tuesday Blitz"]
[Site "Chess.com"]
[Date "2020.11.03"]
[Round "11"]
[White "Frogo47"]
[Black "Vi_Los"]
[Result "0-1"]
[WhiteElo "2447"]
[BlackElo "2359"]
[TimeControl "180+1"]
[EndTime "12:10:46 PST"]
[Termination "Vi_Los won by resignation"]

1. d4 {[%clk 0:03:00.9]} 1... Nf6 {[%clk 0:02:59.2]} 2. c4 {[%clk 0:03:01]} 2...
e6 {[%clk 0:02:59.3]} 3. Nc3 {[%clk 0:03:01.6]} 3... Bb4 {[%clk 0:02:59.1]} 4.
f3 {[%clk 0:03:02.1]} 4... d5 {[%clk 0:02:57.7]} 5. a3 {[%clk 0:03:02]} 5...
Bxc3+ {[%clk 0:02:58.2]} 6. bxc3 {[%clk 0:03:02.4]} 6... c5 {[%clk 0:02:58.1]}
7. cxd5 {[%clk 0:03:02.5]} 7... Nxd5 {[%clk 0:02:59]} 8. dxc5 {[%clk 0:03:02.3]}
8... f5 {[%clk 0:02:58.4]} 9. Nh3 {[%clk 0:03:01.1]} 9... O-O {[%clk 0:02:52.4]}
10. Nf4 {[%clk 0:03:01.2]} 10... Nxf4 {[%clk 0:02:36.6]} 11. Bxf4 {[%clk
0:03:00.1]} 11... Qf6 {[%clk 0:02:29.9]} 12. Qd4 {[%clk 0:02:57.7]} 12... Nd7
{[%clk 0:02:17.8]} 13. Bd6 {[%clk 0:02:53.9]} 13... Re8 {[%clk 0:02:10.3]} 14.
Qxf6 {[%clk 0:02:53]} 14... Nxf6 {[%clk 0:02:10.3]} 15. e3 {[%clk 0:02:46]}
15... Bd7 {[%clk 0:01:53.9]} 16. Rb1 {[%clk 0:02:43]} 16... Bc6 {[%clk
0:01:52.6]} 17. c4 {[%clk 0:02:40.7]} 17... Rad8 {[%clk 0:01:47.5]} 18. Be2
{[%clk 0:02:30.9]} 18... Rd7 {[%clk 0:01:36.8]} 19. O-O {[%clk 0:02:29.6]} 19...
e5 {[%clk 0:01:21.5]} 20. Rfd1 {[%clk 0:02:28.9]} 20... Kf7 {[%clk 0:01:18.5]}
21. Kf2 {[%clk 0:02:24.9]} 21... Ke6 {[%clk 0:01:15.7]} 22. Ke1 {[%clk 0:02:13]}
22... Red8 {[%clk 0:01:14.7]} 23. g3 {[%clk 0:02:09.3]} 23... Ne8 {[%clk
0:01:08.7]} 24. Bf8 {[%clk 0:02:01.1]} 24... Kf7 {[%clk 0:00:57.8]} 25. Rxd7+
{[%clk 0:01:43.4]} 25... Rxd7 {[%clk 0:00:58.7]} 26. Bd6 {[%clk 0:01:41.9]}
26... Nxd6 {[%clk 0:00:58.3]} 27. cxd6 {[%clk 0:01:42.4]} 27... Rxd6 {[%clk
0:00:59]} 28. c5 {[%clk 0:01:40.5]} 28... Rd7 {[%clk 0:00:56]} 29. f4 {[%clk
0:01:40.5]} 29... Kf6 {[%clk 0:00:52.3]} 30. Bb5 {[%clk 0:01:35.4]} 30... Bxb5
{[%clk 0:00:49.2]} 31. Rxb5 {[%clk 0:01:34.6]} 31... exf4 {[%clk 0:00:47.1]} 32.
exf4 {[%clk 0:01:33.8]} 32... Ke6 {[%clk 0:00:46.7]} 33. Ra5 {[%clk 0:01:29.8]}
33... a6 {[%clk 0:00:43]} 34. c6 {[%clk 0:01:30]} 34... bxc6 {[%clk 0:00:42.4]}
35. Rxa6 {[%clk 0:01:29.7]} 35... Kd5 {[%clk 0:00:41.2]} 36. Kd2 {[%clk
0:01:29.7]} 36... Rb7 {[%clk 0:00:35.4]} 37. Kc3 {[%clk 0:01:28.6]} 37... Re7
{[%clk 0:00:20.2]} 38. Ra5+ {[%clk 0:01:27.3]} 38... c5 {[%clk 0:00:20.1]} 39.
Kd3 {[%clk 0:01:24.4]} 39... Re1 {[%clk 0:00:19.6]} 40. Ra7 {[%clk 0:01:22.8]}
40... Rd1+ {[%clk 0:00:19.3]} 41. Kc2 {[%clk 0:01:21.5]} 41... Rh1 {[%clk
0:00:19.2]} 42. Rxg7 {[%clk 0:01:19.2]} 42... Rxh2+ {[%clk 0:00:19.3]} 43. Kc3
{[%clk 0:01:19.7]} 43... Rh3 {[%clk 0:00:18.3]} 44. a4 {[%clk 0:01:16.9]} 44...
h5 {[%clk 0:00:18.4]} 45. Rd7+ {[%clk 0:01:14.1]} 45... Kc6 {[%clk 0:00:18.1]}
46. Rd3 {[%clk 0:01:14.6]} 46... h4 {[%clk 0:00:17.7]} 47. gxh4 {[%clk
0:01:14.1]} 47... Rxh4 {[%clk 0:00:18.3]} 48. Rf3 {[%clk 0:01:14.7]} 48... Rh1
{[%clk 0:00:18.2]} 49. Re3 {[%clk 0:01:11.2]} 49... Ra1 {[%clk 0:00:17.8]} 50.
Kb3 {[%clk 0:01:10.1]} 50... c4+ {[%clk 0:00:17.4]} 51. Kb4 {[%clk 0:01:09.8]}
51... Kd5 {[%clk 0:00:17.5]} 52. Re5+ {[%clk 0:01:08.6]} 52... Kd4 {[%clk
0:00:18]} 53. Rxf5 {[%clk 0:01:08.7]} 53... Rb1+ {[%clk 0:00:17.7]} 54. Ka3
{[%clk 0:01:08.5]} 54... c3 {[%clk 0:00:17.6]} 55. Rf8 {[%clk 0:01:07]} 55... c2
{[%clk 0:00:17.5]} 56. Rd8+ {[%clk 0:01:07.9]} 56... Ke4 {[%clk 0:00:17.1]} 57.
Rc8 {[%clk 0:01:06.8]} 57... c1=Q+ {[%clk 0:00:16.8]} 58. Rxc1 {[%clk
0:01:06.6]} 58... Rxc1 {[%clk 0:00:17.7]} 59. Kb4 {[%clk 0:01:07]} 59... Kd5
{[%clk 0:00:16]} 60. Kb5 {[%clk 0:01:03.8]} 60... Rb1+ {[%clk 0:00:15.8]} 61.
Ka6 {[%clk 0:01:03.8]} 61... Kc6 {[%clk 0:00:16]} 62. a5 {[%clk 0:01:04.1]}
62... Rb5 {[%clk 0:00:15.6]} 0-1